bitfinex-derivatives/quotes_BTCF0:USTF0_20250130
["timestamp","ask_amount","ask_price","bid_price","bid_amount"]
[1738271768021,0.582147,105000.0,104990.0,0.218905]
[1738271769225,0.190465,104990.0,104980.0,0.03838295]
[1738271769426,0.190465,104990.0,104980.0,0.00014258]
[1738271769427,0.68857016,104990.0,104980.0,0.00014258]
[1738271769729,0.190502,104970.0,104960.0,0.29644705]
[1738271769929,0.190502,104970.0,104960.0,0.32488705]
[1738271770228,0.190502,104970.0,104960.0,0.30619633]
[1738271770418,0.221002,104970.0,104960.0,0.33463633]
[1738271770618,0.221002,104970.0,104960.0,0.30619633]
[1738271770820,0.221002,104970.0,104960.0,0.69543633]
[1738271771439,0.221002,104970.0,104960.0,0.69943633]
[1738271772026,0.0305,104970.0,104960.0,0.70143633]
[1738271772421,0.03104258,104980.0,104970.0,0.190502]
[1738271772621,0.03104258,104980.0,104970.0,0.76031232]
[1738271773523,0.03104258,104980.0,104970.0,0.76131232]
[1738271774119,0.03104258,104980.0,104970.0,0.76231232]
[1738271775331,0.03104258,104980.0,104970.0,0.79075232]
[1738271775630,0.00014258,104980.0,104970.0,0.79075232]
[1738271775929,0.0312,105000.0,104990.0,0.190465]
[1738271776122,0.0331,105010.0,105000.0,0.190447]
[1738271776430,0.223529,105010.0,105000.0,0.39945732]
[1738271776930,0.223529,105010.0,105000.0,0.29495216]
[1738271777719,0.0331,105010.0,105000.0,0.65575216]
[1738271777933,0.0351,105010.0,105000.0,0.65675216]
[1738271778133,0.0351,105010.0,105000.0,0.76125732]
[1738271778524,0.0351,105010.0,105000.0,0.76025732]
[1738271779729,0.0351,105010.0,105000.0,0.65575216]
[1738271781527,0.0351,105010.0,105000.0,0.68419216]
[1738271781740,0.0351,105010.0,105000.0,0.69391632]
[1738271782628,0.225529,105010.0,105000.0,0.69391632]
[1738271783931,0.225529,105010.0,105000.0,0.00972416]
[1738271784135,0.225529,105010.0,105000.0,0.02844]
[1738271784433,0.225529,105010.0,104990.0,0.65590374]
[1738271784635,0.225529,105010.0,105000.0,0.13294516]
[1738271784935,0.225529,105010.0,105000.0,0.29495216]
[1738271785128,0.225529,105010.0,105000.0,0.32339216]
[1738271786738,0.225529,105010.0,105000.0,0.29495216]
[1738271786937,0.225529,105010.0,105000.0,0.32339216]
[1738271791637,0.002,105010.0,105000.0,0.42789732]
[1738271791840,0.002,105010.0,105000.0,0.45979732]
[1738271792432,0.002,105010.0,105000.0,0.35529216]
[1738271793934,0.192429,105010.0,105000.0,0.35529216]
[1738271794134,0.192429,105010.0,105000.0,0.32339216]
[1738271797341,0.224629,105010.0,105000.0,0.32339216]
[1738271797643,0.224629,105010.0,105000.0,0.29495216]
[1738271798039,0.002,105010.0,105000.0,0.78865732]
[1738271798943,0.002,105010.0,105000.0,0.81985732]
[1738271802940,0.00014258,105020.0,105010.0,0.190429]
[1738271803143,0.08449576,105030.0,105020.0,0.190411]
[1738271803337,0.08449576,105030.0,105020.0,0.68411616]
[1738271803940,0.08449576,105030.0,105020.0,0.78862132]
[1738271804342,0.08449576,105030.0,105020.0,0.82072132]
[1738271804849,0.08649576,105030.0,105020.0,0.82072132]
[1738271806847,0.002,105030.0,105020.0,0.82072132]
[1738271807349,0.08449576,105050.0,105040.0,0.190375]
[1738271807549,0.08449576,105050.0,105040.0,0.68408016]
[1738271807740,0.08449576,105050.0,105040.0,0.71648016]
[1738271808142,0.08449576,105050.0,105040.0,1.07728016]
[1738271808543,0.08449576,105050.0,105040.0,1.07828016]
[1738271809140,0.11300727,105060.0,105050.0,0.190357]
[1738271809343,0.16794873,105070.0,105060.0,0.190338]
[1738271809644,0.14881484,105070.0,105060.0,0.81934832]
[1738271810051,0.08447952,105070.0,105060.0,0.81934832]
[1738271812943,0.286303,105080.0,105060.0,0.81934832]
[1738271813152,0.286303,105080.0,105070.0,0.10450516]
[1738271814549,0.253703,105080.0,105070.0,0.29482516]
[1738271814851,0.3608,105090.0,105080.0,0.1903]
[1738271814852,0.190287,105090.0,105080.0,0.1903]
[1738271815051,0.71500074,105100.0,105080.0,0.32320516]
[1738271815252,0.71500074,105100.0,105090.0,0.10450516]
[1738271815648,0.71500074,105100.0,105090.0,0.76009432]
[1738271815649,0.1,105100.0,105090.0,0.76009432]
[1738271815850,0.09955763,105110.0,105100.0,0.190266]
[1738271816051,0.05242138,105110.0,105100.0,0.68737116]
[1738271816240,0.05242138,105110.0,105100.0,0.78088851]
[1738271817760,0.05242138,105110.0,105100.0,0.78188851]
[1738271818251,0.05242138,105110.0,105100.0,0.78288851]
[1738271819650,0.05242138,105110.0,105100.0,0.88739367]
[1738271819848,0.05242138,105110.0,105100.0,0.78288851]
[1738271820352,0.285621,105130.0,105100.0,0.69727032]
[1738271820553,0.285621,105130.0,105120.0,0.56981032]
[1738271820857,0.285621,105130.0,105120.0,0.49366516]
[1738271821258,0.285621,105130.0,105120.0,0.68389516]
[1738271821754,0.551003,105140.0,105120.0,0.78840032]
[1738271821960,0.550979,105150.0,105130.0,0.65551016]
[1738271822258,0.550979,105150.0,105140.0,0.13286516]
[1738271822459,0.613079,105150.0,105140.0,0.13286516]
[1738271822855,0.252279,105150.0,105140.0,0.32305916]
[1738271823854,0.252279,105150.0,105140.0,0.32405916]
[1738271825944,0.613079,105150.0,105140.0,0.001]
[1738271826150,0.613079,105150.0,105130.0,0.65565174]
[1738271826151,0.190194,105140.0,105130.0,0.00014258]
[1738271826347,0.550994,105140.0,105130.0,0.00014258]
[1738271826768,0.550994,105140.0,105130.0,0.02850258]
[1738271828463,0.550994,105140.0,105130.0,0.02836]
[1738271828764,0.550994,105140.0,105130.0,0.13286516]
[1738271829453,0.581994,105140.0,105130.0,0.13286516]
[1738271830764,0.581994,105140.0,105130.0,0.02836]
[1738271832062,0.190194,105140.0,105130.0,0.31326285]
[1738271832960,0.19031958,105150.0,105140.0,0.190194]
[1738271833157,0.19031958,105150.0,105140.0,0.29469916]
[1738271833158,0.28601958,105150.0,105140.0,0.29469916]
[1738271834158,0.28601958,105150.0,105140.0,0.29569916]
[1738271834356,0.28601958,105150.0,105140.0,0.32401916]
[1738271835968,0.28601958,105150.0,105140.0,0.32301916]
[1738271838668,0.28601958,105150.0,105140.0,0.78832432]
[1738271838669,0.06444258,105150.0,105140.0,0.78832432]
[1738271838877,0.06444258,105150.0,105140.0,0.68381916]
[1738271839759,0.00014258,105150.0,105140.0,0.78832432]
[1738271839964,0.16758693,105170.0,105160.0,0.190157]
[1738271840166,0.25192309,105190.0,105180.0,0.190121]
[1738271840167,0.16102517,105190.0,105180.0,0.190121]
[1738271840372,0.71053806,105200.0,105190.0,0.190103]
[1738271840570,0.34973806,105200.0,105190.0,0.65540816]
[1738271840776,0.34973806,105200.0,105190.0,0.68372816]
[1738271840974,0.53982306,105200.0,105190.0,0.32292816]
[1738271841170,0.34973806,105200.0,105190.0,0.32292816]
[1738271841472,0.34973806,105200.0,105190.0,0.68372816]
[1738271841979,0.31388081,105200.0,105190.0,0.69800816]
[1738271842167,0.31388081,105200.0,105190.0,0.76220816]
[1738271843159,0.31388081,105200.0,105190.0,0.72060816]
[1738271843366,0.60847097,105200.0,105190.0,0.02932]
[1738271843572,0.190103,105190.0,105180.0,0.00014258]
[1738271843769,0.190129,105180.0,105160.0,0.13833131]
[1738271843972,0.3924,105170.0,105160.0,0.30588853]
[1738271844172,0.0316,105170.0,105160.0,0.69500853]
[1738271844973,0.0316,105170.0,105160.0,0.69800853]
[1738271845172,0.00014258,105180.0,105170.0,0.190139]
[1738271845368,0.00014258,105180.0,105170.0,0.29464416]
[1738271846481,0.00014258,105180.0,105170.0,0.65544416]
[1738271846969,0.00014258,105180.0,105170.0,0.65944416]
[1738271847770,0.00014258,105180.0,105170.0,0.66144416]
[1738271848274,0.19026358,105180.0,105170.0,0.006]
[1738271848776,0.19026358,105180.0,105170.0,0.03432]
[1738271849574,0.19026358,105180.0,105170.0,0.03032]
[1738271849969,0.19026358,105180.0,105170.0,0.02832]
[1738271850276,0.19026358,105180.0,105170.0,0.02932]
[1738271850477,0.19026358,105180.0,105170.0,0.219459]
[1738271850778,0.19026358,105180.0,105170.0,0.32296416]
[1738271851780,0.00014258,105180.0,105170.0,0.32296416]
[1738271852479,0.00014258,105180.0,105170.0,0.68376416]
[1738271852668,0.00014258,105180.0,105170.0,0.71486416]
[1738271853976,0.00014258,105180.0,105170.0,0.35406416]
[1738271854583,0.00014258,105180.0,105170.0,0.71486416]
[1738271854776,0.00014258,105180.0,105170.0,0.71686416]
[1738271855977,0.00014258,105180.0,105170.0,0.72086416]
[1738271856681,0.00014258,105180.0,105170.0,0.78596416]
[1738271858270,0.00014258,105180.0,105170.0,0.89046932]
[1738271858670,0.00014258,105180.0,105170.0,0.92567013]
[1738271858882,0.00014258,105180.0,105170.0,0.92167013]
[1738271859182,0.00014258,105180.0,105170.0,0.92567013]
[1738271859378,0.00014258,105180.0,105170.0,0.92367013]
[1738271859575,0.00014258,105180.0,105170.0,0.92567013]
[1738271859774,0.20459728,105200.0,105190.0,0.190103]
[1738271859977,0.20459728,105200.0,105190.0,0.68368816]
[1738271860684,0.06414275,105200.0,105190.0,0.68368816]
[1738271860983,0.06414275,105200.0,105190.0,0.65540816]
[1738271861186,0.06414275,105200.0,105190.0,0.68368816]
[1738271861187,0.25422775,105200.0,105190.0,0.68368816]
[1738271861377,0.25422775,105200.0,105190.0,0.10450516]
[1738271861378,0.28462775,105200.0,105190.0,0.10450516]
[1738271861584,0.28462775,105200.0,105190.0,0.02828]
[1738271861787,0.28462775,105200.0,105190.0,0.13278516]
[1738271861989,0.28462775,105200.0,105190.0,0.10450516]
[1738271862288,0.28462775,105200.0,105190.0,0.13278516]
[1738271862477,0.28462775,105200.0,105190.0,0.10450516]
[1738271862789,0.28462775,105200.0,105190.0,0.13278516]
[1738271863879,0.28462775,105200.0,105190.0,0.32288816]
[1738271864280,0.28462775,105200.0,105190.0,0.13278516]
[1738271864672,0.28462775,105200.0,105190.0,0.32288816]
[1738271866076,0.25422775,105200.0,105190.0,0.68368816]
[1738271866278,0.06414275,105200.0,105190.0,0.68368816]
[1738271867780,0.25422775,105200.0,105190.0,0.68368816]
[1738271870085,0.25422775,105200.0,105190.0,0.02828]
[1738271870288,0.190103,105190.0,105180.0,0.66527677]
[1738271870489,0.251403,105190.0,105180.0,0.03813861]
[1738271870690,0.612203,105190.0,105180.0,0.03813861]
[1738271871486,0.612203,105190.0,105180.0,0.03913861]
[1738271872392,0.612203,105190.0,105180.0,0.01185861]
[1738271872693,0.612203,105190.0,105180.0,0.00214258]
[1738271873496,0.612203,105190.0,105180.0,0.00114258]
[1738271874088,0.612203,105190.0,105180.0,0.00014258]
[1738271886698,0.71670816,105190.0,105180.0,0.00014258]
[1738271886897,0.190121,105180.0,105150.0,0.51197778]
[1738271887095,0.190175,105150.0,105140.0,0.55241143]
[1738271887398,0.190175,105150.0,105140.0,0.58069143]
[1738271887603,0.190175,105150.0,105140.0,0.579265]
[1738271887911,0.190175,105150.0,105140.0,0.68377016]
[1738271888202,0.190175,105150.0,105140.0,0.69077016]
[1738271889004,0.190175,105150.0,105140.0,0.69377016]
[1738271889799,0.190175,105150.0,105140.0,0.68977016]
[1738271891007,0.190175,105150.0,105140.0,0.69945727]
[1738271892808,0.190175,105150.0,105140.0,0.67117727]
[1738271893307,0.190175,105150.0,105140.0,0.69945727]
[1738271899411,0.190175,105150.0,105140.0,0.69645727]
[1738271900009,0.190175,105150.0,105140.0,0.69945727]
[1738271900609,0.190175,105150.0,105140.0,0.69845727]
[1738271901505,0.190175,105150.0,105140.0,0.69545727]
[1738271901710,0.190175,105150.0,105140.0,0.66717727]
[1738271901910,0.190175,105150.0,105140.0,0.69541727]
[1738271903117,0.190175,105150.0,105140.0,0.66717727]
[1738271903318,0.190175,105150.0,105140.0,0.69541727]
[1738271918735,0.190175,105150.0,105140.0,0.66717727]
[1738271919040,0.253675,105150.0,105140.0,0.69541727]
[1738271921439,0.253675,105150.0,105140.0,0.73086408]
[1738271921635,0.253675,105150.0,105140.0,0.70262408]
[1738271921834,0.253675,105150.0,105140.0,0.73086408]
[1738271923444,0.253675,105150.0,105140.0,0.70262408]
[1738271923638,0.253675,105150.0,105140.0,0.69541727]
[1738271925753,0.253675,105150.0,105140.0,0.73071066]
[1738271926053,0.253675,105150.0,105140.0,0.69541727]
[1738271928053,0.253675,105150.0,105140.0,0.59091211]
[1738271928243,0.253675,105150.0,105140.0,0.01168711]
[1738271928451,0.614475,105150.0,105140.0,0.01168711]
[1738271928748,0.614475,105150.0,105140.0,0.03992711]
[1738271929548,0.614475,105150.0,105140.0,0.03892711]
[1738271929749,0.614475,105150.0,105140.0,0.22912111]
[1738271930953,0.614475,105150.0,105140.0,0.33262627]
[1738271932355,0.253675,105150.0,105140.0,0.33262627]
[1738271936661,0.253675,105150.0,105140.0,0.30438627]
[1738271936860,0.253675,105150.0,105140.0,0.33258627]
[1738271937064,0.253675,105150.0,105140.0,0.30438627]
[1738271937248,0.253675,105150.0,105140.0,0.33258627]
[1738271937454,0.253675,105150.0,105140.0,0.33358627]
[1738271937961,0.253675,105150.0,105140.0,0.33458627]
[1738271939262,0.0635,105150.0,105140.0,0.69538627]
[1738271939462,0.22030158,105160.0,105150.0,0.190175]
[1738271939659,0.22030158,105160.0,105150.0,0.65548016]
[1738271952472,0.19030158,105160.0,105150.0,0.65548016]
[1738271952666,0.19030158,105160.0,105150.0,0.61933232]
[1738271955277,0.19030158,105160.0,105150.0,0.64753232]
[1738271959478,0.00014258,105160.0,105150.0,0.71588964]
[1738271959679,0.00014258,105160.0,105150.0,0.77788964]
[1738271959876,0.00014258,105160.0,105150.0,0.81303419]
[1738271960268,0.00014258,105160.0,105150.0,0.78483419]
[1738271960475,0.00014258,105160.0,105150.0,0.74467687]
[1738271960870,0.00014258,105160.0,105150.0,0.67631955]
[1738271962676,0.00014258,105160.0,105150.0,0.641175]
[1738271963178,0.00014258,105160.0,105150.0,0.77784964]
[1738271964579,0.00014258,105160.0,105150.0,0.84942886]
[1738271971186,0.19011,105190.0,105180.0,0.190121]
[1738271971484,0.19011,105190.0,105180.0,0.32242793]
[1738271971485,0.25311,105190.0,105180.0,0.32242793]
[1738271972887,0.25411,105190.0,105180.0,0.32342793]
[1738271978283,0.25411,105190.0,105180.0,0.3332403]
[1738271978788,0.25311,105190.0,105180.0,0.3322403]
[1738271984686,0.25311,105190.0,105180.0,0.36473741]
[1738271984879,0.25311,105190.0,105180.0,0.29641539]
[1738271987595,0.25311,105190.0,105180.0,0.36473741]
[1738271987798,0.25311,105190.0,105180.0,0.29641539]
[1738271989797,0.25311,105190.0,105180.0,0.22805337]
[1738271989993,0.25311,105190.0,105180.0,0.19993337]
[1738271990293,0.190121,105180.0,105170.0,0.19027958]
[1738271990495,0.29014302,105180.0,105170.0,0.21839958]
[1738271991597,0.221821,105180.0,105170.0,0.2867216]
[1738271992595,0.221821,105180.0,105170.0,0.29616323]
[1738271993705,0.221821,105180.0,105170.0,0.26804323]
[1738271993904,0.221821,105180.0,105170.0,0.29616323]
[1738271994605,0.65094302,105180.0,105170.0,0.00958421]
[1738271994804,0.65094302,105180.0,105170.0,0.07790623]
[1738271995197,0.65094302,105180.0,105170.0,0.00958421]
[1738271997602,0.582621,105180.0,105170.0,0.07790623]
[1738271998207,0.65094302,105180.0,105170.0,0.07790623]
[1738271998709,0.65094302,105180.0,105170.0,0.00958421]
[1738272003014,0.65094302,105180.0,105170.0,0.07790623]
[1738272003513,0.582621,105180.0,105170.0,0.07790623]
[1738272006312,0.65094302,105180.0,105170.0,0.00014258]
[1738272011822,0.582621,105180.0,105170.0,0.0684646]
[1738272012211,0.65094302,105180.0,105170.0,0.00014258]
[1738272012512,0.582621,105180.0,105170.0,0.00014258]
[1738272012713,0.65094302,105180.0,105170.0,0.00014258]
[1738272019920,0.76382462,105180.0,105170.0,0.00014258]
[1738272031531,0.6955026,105180.0,105170.0,0.00014258]
[1738272031734,0.6638026,105180.0,105170.0,0.2586036]
[1738272034032,0.3030026,105180.0,105170.0,0.2586036]
[1738272034531,0.6638026,105180.0,105170.0,0.2586036]
[1738272034830,0.3030026,105180.0,105170.0,0.2586036]
[1738272035227,0.190121,105180.0,105170.0,0.2586036]
[1738272046546,0.68756504,105180.0,105170.0,0.00014258]
[1738272046745,0.65084302,105180.0,105170.0,0.00014258]
[1738272047247,0.71916504,105180.0,105170.0,0.00014258]
[1738272051251,0.71916504,105180.0,105170.0,7.69e-06]
[1738272051853,0.83204664,105180.0,105170.0,7.69e-06]
[1738272058158,0.84179545,105180.0,105170.0,7.69e-06]
[1738272061848,0.83204664,105180.0,105170.0,7.69e-06]
[1738272069049,0.76372462,105180.0,105170.0,7.69e-06]
[1738272069858,0.83204664,105180.0,105170.0,7.69e-06]
[1738272073863,0.76372462,105180.0,105170.0,7.69e-06]
[1738272074564,0.83204664,105180.0,105170.0,7.69e-06]
[1738272075665,0.76372462,105180.0,105170.0,7.69e-06]
[1738272076560,0.6954026,105180.0,105170.0,0.25846871]
[1738272076763,0.1128816,105180.0,105170.0,0.32679073]
[1738272077059,0.19024789,105190.0,105170.0,0.52042971]
[1738272077260,0.19024789,105190.0,105180.0,0.28884302]
[1738272077460,0.25856991,105190.0,105180.0,0.28884302]
[1738272077860,0.25856991,105190.0,105180.0,0.220521]
[1738272078561,0.25856991,105190.0,105180.0,0.28884302]
[1738272078965,0.25956991,105190.0,105180.0,0.28884302]
[1738272079568,0.37298981,105190.0,105180.0,0.28884302]
[1738272079766,0.37698981,105190.0,105180.0,0.28884302]
[1738272080358,0.37798981,105190.0,105180.0,0.28884302]
[1738272081560,0.37798981,105190.0,105180.0,0.29856179]
[1738272081764,0.37798981,105190.0,105180.0,0.04011877]
[1738272082761,0.190121,105180.0,105170.0,7.69e-06]
[1738272082960,0.85008706,105180.0,105170.0,7.69e-06]
[1738272084071,0.78176504,105180.0,105170.0,7.69e-06]
[1738272084265,0.78576504,105180.0,105170.0,7.69e-06]
[1738272084465,0.85408706,105180.0,105170.0,7.69e-06]
[1738272084666,0.78576504,105180.0,105170.0,7.69e-06]
[1738272085364,0.78676504,105180.0,105170.0,7.69e-06]
[1738272085561,0.85508706,105180.0,105170.0,7.69e-06]
[1738272085963,0.49428706,105180.0,105170.0,7.69e-06]
[1738272086270,1.21588706,105180.0,105170.0,7.69e-06]
[1738272086871,1.35766194,105180.0,105170.0,7.69e-06]
[1738272089463,1.52779179,105180.0,105170.0,7.69e-06]
[1738272089873,1.52779179,105180.0,105170.0,6.9e-07]
[1738272090374,1.5383845,105180.0,105170.0,6.9e-07]
[1738272092172,1.36825465,105180.0,105170.0,6.9e-07]
[1738272093777,1.29993263,105180.0,105170.0,6.9e-07]
[1738272093979,1.36825465,105180.0,105170.0,6.9e-07]
[1738272095778,1.29993263,105180.0,105170.0,6.9e-07]
[1738272095974,1.27193263,105180.0,105170.0,6.9e-07]
[1738272096178,1.29993263,105180.0,105170.0,6.9e-07]
[1738272096383,1.20361061,105180.0,105170.0,6.9e-07]
[1738272096570,1.1940179,105180.0,105170.0,6.9e-07]
[1738272097573,1.16519341,105180.0,105170.0,6.9e-07]
[1738272098679,1.03267139,105180.0,105170.0,0.222039]
[1738272098875,1.03067139,105180.0,105170.0,0.222039]
[1738272099076,1.02867139,105180.0,105170.0,0.221039]
[1738272101073,0.915721,105180.0,105170.0,0.221039]
[1738272102388,1.01986523,105180.0,105170.0,0.0309]
[1738272103874,1.01986523,105180.0,105170.0,0.04035803]
[1738272106270,0.190139,105170.0,105160.0,0.19029058]
[1738272106475,0.65508323,105170.0,105160.0,0.00014258]
[1738272106676,0.72058323,105170.0,105160.0,0.00014258]
[1738272106880,0.75228323,105170.0,105160.0,0.00014258]
[1738272109488,0.75428323,105170.0,105160.0,0.00014258]
[1738272109682,0.76028323,105170.0,105160.0,0.00114258]
[1738272110487,0.87323362,105170.0,105160.0,0.00114258]
[1738272112293,0.88268229,105170.0,105160.0,0.00114258]
[1738272120508,0.84692037,105170.0,105160.0,0.00114258]
[1738272121201,0.68133806,105170.0,105160.0,0.06952489]
[1738272121406,0.67188939,105170.0,105160.0,0.06952489]
[1738272121613,0.45286427,105170.0,105160.0,0.06952489]
[1738272121802,0.52124658,105170.0,105160.0,0.00114258]
[1738272122203,0.52124658,105170.0,105160.0,0.25968189]
[1738272122605,0.81366427,105170.0,105160.0,0.19129958]
[1738272125003,0.558939,105170.0,105160.0,0.19129958]
[1738272126110,0.198139,105170.0,105160.0,0.19129958]
[1738272126298,0.558939,105170.0,105160.0,0.19129958]
[1738272126815,0.558939,105170.0,105160.0,0.2007628]
[1738272128710,0.198139,105170.0,105160.0,0.2007628]
[1738272129913,0.198139,105170.0,105160.0,0.30493623]
[1738272132609,0.198139,105170.0,105160.0,0.2007628]
[1738272133915,0.196139,105170.0,105160.0,0.2007628]
[1738272134916,0.190139,105170.0,105160.0,0.2027628]
[1738272135412,0.190139,105170.0,105160.0,0.1997628]
[1738272136111,0.190139,105170.0,105160.0,0.2027628]
[1738272136713,0.190139,105170.0,105160.0,0.2037628]
[1738272137419,0.190139,105170.0,105160.0,0.2027628]
[1738272138212,0.190139,105170.0,105160.0,0.1997628]
[1738272144622,0.190139,105170.0,105160.0,0.26812329]
[1738272145114,0.68259949,105170.0,105160.0,0.1997628]
[1738272145317,0.71539949,105170.0,105160.0,0.0375258]
[1738272146420,0.35459949,105170.0,105160.0,0.2276828]
[1738272146715,0.286239,105170.0,105160.0,0.2276828]
[1738272147115,0.286239,105170.0,105160.0,0.29604329]
[1738272147518,0.647039,105170.0,105160.0,0.29604329]
[1738272148018,0.647039,105170.0,105160.0,0.2276828]
[1738272148211,0.71539949,105170.0,105160.0,0.2276828]
[1738272149110,0.82834988,105170.0,105160.0,0.2276828]
[1738272150422,0.75998939,105170.0,105160.0,0.2276828]
[1738272150918,0.75998939,105170.0,105160.0,0.0375258]
[1738272151220,0.82834988,105170.0,105160.0,0.2276828]
[1738272151920,0.75998939,105170.0,105160.0,0.2276828]
[1738272152818,0.82834988,105170.0,105160.0,0.2276828]
[1738272153123,0.82834988,105170.0,105160.0,0.0375258]
[1738272154219,0.82834988,105170.0,105160.0,0.0096058]
[1738272154415,0.82834988,105170.0,105160.0,0.2276428]
[1738272156522,0.82834988,105170.0,105160.0,0.0374858]
[1738272159023,0.75998939,105170.0,105160.0,0.2276428]
[1738272161028,0.75998939,105170.0,105160.0,0.1997628]
[1738272161214,0.75998939,105170.0,105160.0,0.0374858]
[1738272161419,0.82834988,105170.0,105160.0,0.0374858]
[1738272161620,0.75998939,105170.0,105160.0,0.0374858]
[1738272161816,0.82834988,105170.0,105160.0,0.0374858]
[1738272162216,0.82834988,105170.0,105160.0,0.2276428]
[1738272162821,0.82834988,105170.0,105160.0,0.0374858]
[1738272165315,0.82834988,105170.0,105160.0,0.00014258]
[1738272167920,0.46754988,105170.0,105160.0,0.00014258]
[1738272168123,0.36638939,105170.0,105160.0,0.71570056]
[1738272168436,0.37520473,105170.0,105160.0,0.71570056]
[1738272168724,0.37520473,105170.0,105160.0,0.64734007]
[1738272169432,0.37520473,105170.0,105160.0,0.71570056]
[1738272169635,0.37520473,105170.0,105160.0,0.32702056]
[1738272169817,0.87272571,105170.0,105130.0,0.46733974]
[1738272170132,0.61935449,105140.0,105130.0,0.27712974]
[1738272170635,0.78361498,105140.0,105130.0,0.27712974]
[1738272170930,0.71525449,105140.0,105130.0,0.28686511]
[1738272171120,0.71525449,105140.0,105130.0,0.28986511]
[1738272171522,0.71525449,105140.0,105130.0,0.01273537]
[1738272171724,0.78361498,105140.0,105130.0,0.01273537]
[1738272171925,0.78461498,105140.0,105130.0,0.02173537]
[1738272172127,0.71625449,105140.0,105130.0,0.02173537]
[1738272172328,0.78461498,105140.0,105130.0,0.012]
[1738272172531,0.647894,105140.0,105130.0,0.012]
[1738272172724,0.2944976,105130.0,105120.0,0.00014258]
[1738272172925,0.6831376,105130.0,105120.0,0.00014258]
[1738272174537,0.6831376,105130.0,105120.0,0.00214258]
[1738272174837,0.6841376,105130.0,105120.0,0.00714258]
[1738272175643,0.79796841,105130.0,105120.0,0.00714258]
[1738272177732,0.77012841,105130.0,105120.0,0.00714258]
[1738272177934,0.79796841,105130.0,105120.0,0.00714258]
[1738272178235,0.77012841,105130.0,105120.0,0.00714258]
[1738272178434,0.79796841,105130.0,105120.0,0.00714258]
[1738272178737,0.80751304,105130.0,105120.0,0.00714258]
[1738272178939,0.69368223,105130.0,105120.0,0.00714258]
[1738272180043,0.66584223,105130.0,105120.0,0.00714258]
[1738272180240,0.69368223,105130.0,105120.0,0.00714258]
[1738272183530,0.66584223,105130.0,105120.0,0.00714258]
[1738272183733,0.69368223,105130.0,105120.0,0.00714258]
[1738272183933,0.66584223,105130.0,105120.0,0.00714258]
[1738272184135,0.69368223,105130.0,105120.0,0.00714258]
[1738272185648,0.552012,105130.0,105120.0,0.11142818]
[1738272185943,0.552012,105130.0,105120.0,0.19737258]
[1738272186142,0.191212,105130.0,105120.0,0.19737258]
[1738272189637,0.191212,105130.0,105120.0,0.22827258]
[1738272193441,0.191212,105130.0,105120.0,0.23781335]
[1738272194844,0.191212,105130.0,105120.0,0.70289895]
[1738272200844,0.001,105130.0,105120.0,0.70289895]
[1738272201256,0.001,105130.0,105120.0,0.80718455]
[1738272201442,0.001,105130.0,105120.0,0.70289895]
[1738272204347,0.001,105130.0,105120.0,0.80718455]
[1738272204655,0.001,105130.0,105120.0,0.70289895]
[1738272207756,0.001,105130.0,105120.0,0.80718455]
[1738272208648,0.00014258,105150.0,105120.0,0.61695455]
[1738272208850,0.19032458,105150.0,105140.0,0.2944796]
[1738272209857,0.19032458,105150.0,105140.0,0.190194]
[1738272210946,0.19132458,105150.0,105140.0,0.190194]
[1738272212760,0.55212458,105150.0,105140.0,0.190194]
[1738272213055,0.19132458,105150.0,105140.0,0.190194]
[1738272217260,0.19132458,105150.0,105140.0,0.19958138]
[1738272218565,0.19132458,105150.0,105140.0,0.26796747]
[1738272224458,0.19132458,105150.0,105140.0,0.26896747]
[1738272225471,0.19032458,105150.0,105140.0,0.27096747]
[1738272228066,0.55112458,105150.0,105140.0,0.27096747]
[1738272228263,0.61951067,105150.0,105140.0,0.01038738]
[1738272228560,0.62051067,105150.0,105140.0,0.03814738]
[1738272228870,0.61951067,105150.0,105140.0,0.03814738]
[1738272229175,0.61951067,105150.0,105140.0,0.04014738]
[1738272229562,0.25871067,105150.0,105140.0,0.23034138]
[1738272229768,0.61951067,105150.0,105140.0,0.23034138]
[1738272229967,0.61951067,105150.0,105140.0,0.22934138]
[1738272230268,0.62051067,105150.0,105140.0,0.22734138]
[1738272230867,0.55212458,105150.0,105140.0,0.22734138]
[1738272231576,0.55212458,105150.0,105140.0,0.03714738]
[1738272231781,0.66595539,105150.0,105140.0,0.03714738]
[1738272235465,0.66595539,105150.0,105140.0,0.29572747]
[1738272235466,0.30515539,105150.0,105140.0,0.29572747]
[1738272237677,0.30515539,105150.0,105140.0,0.36411356]
[1738272239278,0.30415539,105150.0,105140.0,0.36711356]
[1738272240877,0.30415539,105150.0,105140.0,0.29872747]
[1738272242266,0.30415539,105150.0,105140.0,0.29672747]
[1738272242476,0.30515539,105150.0,105140.0,0.29572747]
[1738272244985,0.30515539,105150.0,105140.0,0.22734138]
[1738272245173,0.73434148,105150.0,105140.0,0.03714738]
[1738272248884,0.73434148,105150.0,105140.0,0.22734138]
[1738272249184,0.66595539,105150.0,105140.0,0.29572747]
[1738272252483,0.66495539,105150.0,105140.0,0.29872747]
[1738272254575,0.30415539,105150.0,105140.0,0.29872747]
[1738272254776,0.66495539,105150.0,105140.0,0.29872747]
[1738272259580,0.30415539,105150.0,105140.0,0.29872747]
[1738272260483,0.30415539,105150.0,105140.0,0.65952747]
[1738272261190,0.30415539,105150.0,105140.0,0.65752747]
[1738272261382,0.30415539,105150.0,105140.0,0.65952747]
[1738272263290,0.30415539,105150.0,105140.0,0.29872747]
[1738272264383,0.30415539,105150.0,105140.0,0.29772747]
[1738272264583,0.30415539,105150.0,105140.0,0.29768747]
[1738272264777,0.30415539,105150.0,105140.0,0.29568747]
[1738272264989,0.30415539,105150.0,105140.0,0.29768747]
[1738272265485,0.30515539,105150.0,105140.0,0.29568747]
[1738272267691,0.66595539,105150.0,105140.0,0.29568747]
[1738272268594,0.30515539,105150.0,105140.0,0.29568747]
[1738272268795,0.66595539,105150.0,105140.0,0.29568747]
[1738272270493,0.30515539,105150.0,105140.0,0.29568747]
[1738272275302,0.30515539,105150.0,105140.0,0.26796747]
[1738272275797,0.30515539,105150.0,105140.0,0.29568747]
[1738272276106,0.66595539,105150.0,105140.0,0.29568747]
[1738272279007,0.30515539,105150.0,105140.0,0.29568747]
[1738272279506,0.66595539,105150.0,105140.0,0.29568747]
[1738272281609,0.30515539,105150.0,105140.0,0.29568747]
[1738272286411,0.66595539,105150.0,105140.0,0.29568747]
[1738272290817,0.66595539,105150.0,105140.0,0.22730138]
[1738272293217,0.66595539,105150.0,105140.0,0.29568747]
[1738272295517,0.66595539,105150.0,105140.0,0.22730138]
[1738272300720,0.80773027,105150.0,105140.0,0.22730138]
[1738272303425,0.87611636,105150.0,105140.0,0.00938738]
[1738272303624,0.68593436,105150.0,105120.0,0.27727232]
[1738272303918,0.190212,105130.0,105120.0,0.56356841]
[1738272304125,0.190212,105130.0,105120.0,0.6319545]